bitfinex/quotes_BTCUSD_20240723
["timestamp","ask_amount","ask_price","bid_price","bid_amount"]
[1721711958367,1.84946569,66892.0,66891.0,0.001924]
[1721711958868,1.84946569,66892.0,66891.0,0.000924]
[1721711960167,1.8581901,66892.0,66891.0,0.000924]
[1721711960986,1.9081901,66892.0,66891.0,0.000924]
[1721711961193,2.10770339,66892.0,66891.0,0.000924]
[1721711961396,1.68569,66885.0,66884.0,0.009251]
[1721711961595,2.00609323,66885.0,66884.0,0.009251]
[1721711961967,2.30511323,66885.0,66884.0,0.009251]
[1721711962825,2.01309323,66885.0,66884.0,0.009251]
[1721711963379,2.00609323,66885.0,66884.0,0.009251]
[1721711963517,2.2003174,66885.0,66884.0,0.009251]
[1721711964117,2.1503174,66885.0,66884.0,0.009251]
[1721711964322,2.49927358,66885.0,66884.0,0.009251]
[1721711964584,2.50327358,66885.0,66884.0,0.009251]
[1721711964796,2.40425966,66885.0,66884.0,0.009251]
[1721711964978,2.49886589,66885.0,66884.0,0.009251]
[1721711965308,2.50286589,66885.0,66884.0,0.009251]
[1721711965519,2.20384589,66885.0,66884.0,0.009251]
[1721711966116,2.20384589,66885.0,66881.0,0.002]
[1721711966117,1.744687,66882.0,66881.0,0.002]
[1721711966307,2.17077398,66882.0,66881.0,0.002]
[1721711966508,2.20561252,66882.0,66881.0,0.002]
[1721711967097,2.25561252,66882.0,66881.0,0.002]
[1721711967300,2.41321252,66882.0,66881.0,0.002]
[1721711967496,2.50043669,66882.0,66881.0,0.002]
[1721711967757,2.49965685,66882.0,66881.0,0.002]
[1721711968388,2.15262285,66882.0,66881.0,0.002]
[1721711968799,1.80779868,66882.0,66881.0,0.002]
[1721711969007,1.50876468,66882.0,66881.0,0.002]
[1721711969220,1.32609975,66882.0,66881.0,0.002]
[1721711969479,1.46736268,66882.0,66881.0,0.002]
[1721711969684,1.85760471,66882.0,66881.0,0.002]
[1721711969901,1.95456736,66882.0,66881.0,0.002]
[1721711970109,2.00456736,66882.0,66881.0,0.002]
[1721711970623,2.05456736,66882.0,66881.0,0.002]
[1721711971022,2.21853685,66882.0,66881.0,0.002924]
[1721711971236,1.345792,66875.0,66874.0,0.009251]
[1721711971438,1.85600499,66875.0,66874.0,0.009251]
[1721711971641,1.89721302,66875.0,66874.0,0.009251]
[1721711971846,2.44377702,66875.0,66874.0,0.009251]
[1721711972471,2.60137702,66875.0,66874.0,0.009251]
[1721711972672,2.74833967,66875.0,66874.0,0.009251]
[1721711972880,2.94833967,66875.0,66874.0,0.009251]
[1721711973088,2.9481378,66875.0,66874.0,0.009251]
[1721711973527,1.483313,66864.0,66857.0,0.28276096]
[1721711973755,2.0440686,66864.0,66857.0,0.28276096]
[1721711974147,2.00640527,66864.0,66857.0,0.28276096]
[1721711974594,2.00640527,66864.0,66863.0,0.004225]
[1721711974798,2.30551927,66864.0,66863.0,0.004225]
[1721711974926,2.35551927,66864.0,66863.0,0.004225]
[1721711975320,2.40551927,66864.0,66863.0,0.004225]
[1721711975528,0.05,66863.0,66857.0,0.19946096]
[1721711975736,0.05,66863.0,66849.0,0.00027598]
[1721711975737,0.149584,66852.0,66849.0,0.00027598]
[1721711975953,1.047102,66851.0,66849.0,0.00027598]
[1721711976158,2.12730626,66851.0,66849.0,0.00027598]
[1721711976371,1.95102284,66851.0,66849.0,0.00027598]
[1721711976568,2.00172822,66851.0,66849.0,0.00027598]
[1721711976774,2.14024337,66851.0,66849.0,0.00027598]
[1721711976976,1.995473,66850.0,66849.0,0.00027598]
[1721711977196,1.995473,66850.0,66840.0,0.000775]
[1721711977197,0.589106,66844.0,66840.0,0.000775]
[1721711977409,1.670456,66844.0,66840.0,0.000775]
[1721711977608,2.11662265,66844.0,66840.0,0.000775]
[1721711978027,2.17287211,66844.0,66840.0,0.000775]
[1721711978212,2.02590946,66844.0,66840.0,0.000775]
[1721711978612,2.03490946,66844.0,66840.0,0.000775]
[1721711978842,2.03552663,66844.0,66840.0,0.000775]
[1721711979705,2.04450391,66844.0,66840.0,0.000775]
[1721711979955,2.18246656,66844.0,66840.0,0.000775]
[1721711980173,2.03423746,66844.0,66840.0,0.000775]
[1721711980396,2.05323746,66844.0,66840.0,0.000775]
[1721711980610,2.04423746,66844.0,66840.0,0.000775]
[1721711981025,2.05323746,66844.0,66840.0,0.000775]
[1721711981224,2.20020011,66844.0,66840.0,0.000775]
[1721711981644,2.18120011,66844.0,66840.0,0.000775]
[1721711981876,2.10560011,66844.0,66840.0,0.000775]
[1721711982109,2.12260011,66844.0,66840.0,0.000775]
[1721711982571,2.11260011,66844.0,66840.0,0.000775]
[1721711982777,2.12060011,66844.0,66840.0,0.000775]
[1721711983189,2.11360011,66844.0,66840.0,0.000775]
[1721711983400,2.10560011,66844.0,66840.0,0.000775]
[1721711983600,2.12060011,66844.0,66840.0,0.000775]
[1721711983982,2.11460011,66844.0,66840.0,0.000775]
[1721711984185,2.12160011,66844.0,66840.0,0.000775]
[1721711984544,2.11460011,66844.0,66840.0,0.000775]
[1721711984794,2.12231061,66844.0,66840.0,0.000775]
[1721711985013,2.11331061,66844.0,66840.0,0.000775]
[1721711985220,2.12231061,66844.0,66840.0,0.000775]
[1721711986103,2.17231061,66844.0,66840.0,0.000775]
[1721711986819,2.52151461,66844.0,66840.0,0.000775]
[1721711987409,2.47151461,66844.0,66840.0,0.000775]
[1721711987567,2.17231061,66844.0,66840.0,0.000775]
[1721711987792,2.12179619,66844.0,66840.0,0.000775]
[1721711988399,1.31867566,66844.0,66840.0,0.000775]
[1721711988629,1.6640646,66844.0,66840.0,0.000775]
[1721711988850,1.71524484,66844.0,66840.0,0.000775]
[1721711989361,1.70624484,66844.0,66840.0,0.000775]
[1721711989857,1.71524484,66844.0,66840.0,0.000775]
[1721711990347,1.70824484,66844.0,66840.0,0.000775]
[1721711990582,1.85520749,66844.0,66840.0,0.000775]
[1721711990822,1.86258061,66844.0,66840.0,0.000775]
[1721711991101,1.25176187,66844.0,66840.0,0.000775]
[1721711991331,1.2842527,66844.0,66843.0,0.071051]
[1721711991576,1.5409527,66844.0,66843.0,0.010251]
[1721711991816,1.74416481,66844.0,66843.0,0.009251]
[1721711992062,2.04336881,66844.0,66843.0,0.011251]
[1721711992417,2.04436881,66844.0,66843.0,0.011251]
[1721711992883,2.03374905,66844.0,66843.0,0.011251]
[1721711993135,2.03374905,66844.0,66843.0,0.050051]
[1721711993136,1.04229816,66844.0,66843.0,0.050051]
[1721711993367,1.18751241,66844.0,66843.0,0.149551]
[1721711993635,1.18751241,66844.0,66843.0,0.009251]
[1721711993886,1.30826365,66844.0,66843.0,0.009251]
[1721711994133,0.68814793,66844.0,66843.0,0.048051]
[1721711994391,0.88930841,66844.0,66843.0,0.149551]
[1721711994628,0.009,66844.0,66843.0,0.15452265]
[1721711994872,0.009,66844.0,66843.0,0.149551]
[1721711995144,0.149602,66844.0,66843.0,0.15451693]
[1721711995391,0.448806,66844.0,66843.0,0.15551693]
[1721711995652,0.44093655,66869.0,66843.0,0.15551693]
[1721711995653,0.44093655,66866.0,66850.0,0.0383]
[1721711995926,0.149573,66857.0,66852.0,0.0383]
[1721711996207,0.747907,66853.0,66852.0,0.0383]
[1721711996490,0.747907,66853.0,66843.0,0.033251]
[1721711996491,0.747997,66845.0,66844.0,0.0383]
[1721711996708,0.7871835,66845.0,66844.0,0.0383]
[1721711996939,0.7871835,66845.0,66844.0,0.04324487]
[1721711997176,1.0863825,66845.0,66844.0,0.0383]
[1721711997415,1.1863825,66845.0,66844.0,0.0383]
[1721711997666,1.1863825,66845.0,66843.0,0.009251]
[1721711997667,0.1391865,66845.0,66843.0,0.009251]
[1721711997912,1.18645646,66844.0,66843.0,0.009251]
[1721711998140,1.48566046,66844.0,66843.0,0.009251]
[1721711999125,1.18645646,66844.0,66843.0,0.009251]
[1721711999790,1.18745646,66844.0,66843.0,0.009251]
[1721712000744,1.18730121,66844.0,66843.0,0.009251]
[1721712000999,1.18830121,66844.0,66843.0,0.012251]
[1721712001749,0.102,66844.0,66843.0,0.093951]
[1721712001999,0.002,66844.0,66843.0,0.14406629]
[1721712002241,0.102,66844.0,66843.0,0.1219216]
[1721712002482,0.88930841,66844.0,66843.0,0.1219216]
[1721712002721,0.88930841,66844.0,66843.0,0.093951]
[1721712002722,1.18851241,66844.0,66843.0,0.093951]
[1721712002992,1.27654325,66844.0,66843.0,0.012251]
[1721712003237,1.18851241,66844.0,66843.0,0.012251]
[1721712003494,1.18751241,66844.0,66843.0,0.009251]
[1721712003746,0.88830841,66844.0,66843.0,0.009251]
[1721712004207,1.00705815,66844.0,66843.0,0.009251]
[1721712004407,0.88930841,66844.0,66843.0,0.019251]
[1721712004623,0.88830841,66844.0,66843.0,0.019251]
[1721712004748,1.18751241,66844.0,66843.0,0.022251]
[1721712004948,1.18851241,66844.0,66843.0,0.028251]
[1721712005178,0.88730841,66844.0,66843.0,0.012251]
[1721712005379,0.88730841,66844.0,66843.0,0.009251]
[1721712005584,0.549806,66844.0,66843.0,0.116051]
[1721712006131,0.84801,66844.0,66843.0,0.108051]
[1721712006337,0.548806,66844.0,66843.0,0.108051]
[1721712006547,0.548806,66844.0,66843.0,0.111051]
[1721712006742,0.101,66844.0,66843.0,0.121051]
[1721712006943,0.250602,66844.0,66843.0,0.121051]
[1721712007296,0.250602,66844.0,66843.0,0.136008]
[1721712007297,0.251602,66844.0,66843.0,0.136008]
[1721712007681,0.249602,66844.0,66843.0,0.116008]
[1721712007917,0.250602,66844.0,66843.0,0.128008]
[1721712008092,0.250602,66844.0,66843.0,0.125008]
[1721712008299,0.549806,66844.0,66843.0,0.120008]
[1721712008472,0.550806,66844.0,66843.0,0.128051]
[1721712008681,0.550806,66844.0,66843.0,0.133008]
[1721712008878,0.549806,66844.0,66843.0,0.126008]
[1721712009039,1.27249581,66844.0,66843.0,0.027208]
[1721712009242,1.37042169,66844.0,66843.0,0.022251]
[1721712009443,1.28543829,66844.0,66843.0,0.022251]
[1721712009650,1.18851241,66844.0,66843.0,0.029251]
[1721712009851,1.28586137,66844.0,66843.0,0.029251]
[1721712010527,1.58506537,66844.0,66843.0,0.029251]
[1721712010674,1.73202802,66844.0,66843.0,0.029251]
[1721712011977,1.58506537,66844.0,66843.0,0.029251]
[1721712013166,1.58506537,66844.0,66843.0,0.052251]
[1721712013167,1.28586137,66844.0,66843.0,0.052251]
[1721712014673,1.28634515,66844.0,66843.0,0.052251]
[1721712015027,1.18851241,66844.0,66843.0,0.052251]
[1721712015232,1.28619056,66844.0,66843.0,0.052251]
[1721712016267,0.98698656,66844.0,66843.0,0.052251]
[1721712016471,0.98698656,66844.0,66843.0,0.05721941]
[1721712016882,0.98698656,66844.0,66843.0,0.052251]
[1721712017719,0.98710526,66844.0,66843.0,0.052251]
[1721712017924,1.28630926,66844.0,66843.0,0.052251]
[1721712019555,1.33032368,66844.0,66843.0,0.052251]
[1721712019760,1.03111968,66844.0,66843.0,0.052251]
[1721712020177,0.98710526,66844.0,66843.0,0.052251]
[1721712020603,0.88930841,66844.0,66843.0,0.052251]
[1721712020810,0.98816854,66844.0,66843.0,0.052251]
[1721712021017,0.98816331,66844.0,66843.0,0.052251]
[1721712021190,0.98816663,66844.0,66843.0,0.052251]
[1721712023448,1.03221507,66844.0,66843.0,0.052251]
[1721712023711,0.98816663,66844.0,66843.0,0.052251]
[1721712023889,0.98839961,66844.0,66843.0,0.052251]
[1721712024112,1.03244537,66844.0,66843.0,0.052251]
[1721712024303,0.98839961,66844.0,66843.0,0.052251]
[1721712025674,0.550806,66844.0,66843.0,0.052251]
[1721712025931,0.251602,66844.0,66843.0,0.05721941]
[1721712026119,0.002,66844.0,66843.0,0.73523541]
[1721712026295,0.002,66844.0,66843.0,1.0287342]
[1721712026507,0.002,66844.0,66843.0,1.57496211]
[1721712026676,0.00084,66849.0,66848.0,0.548779]
[1721712026893,0.34321081,66863.0,66848.0,0.548779]
[1721712026894,0.149567,66860.0,66855.0,0.149576]
[1721712027101,0.149568,66859.0,66856.0,0.0808347]
[1721712027305,0.04408411,66864.0,66857.0,0.05]
[1721712027482,0.299092,66869.0,66860.0,0.0762]
[1721712027483,0.04408411,66867.0,66860.0,0.0762]
[1721712027679,0.04408411,66867.0,66862.0,0.14956]
[1721712027680,0.149551,66867.0,66862.0,0.14956]
[1721712027906,0.149549,66868.0,66863.0,0.2093477]
[1721712028106,0.149549,66868.0,66864.0,0.023]
[1721712028308,0.04408411,66874.0,66864.0,0.02795966]
[1721712028508,0.299075,66873.0,66864.0,0.02795966]
[1721712028682,0.11372961,66872.0,66864.0,0.02795966]
[1721712028895,0.448717,66857.0,66848.0,0.0784]
[1721712029127,1.30200558,66857.0,66843.0,0.009251]
[1721712029365,1.15834034,66857.0,66843.0,0.009251]
[1721712029567,1.55706344,66857.0,66843.0,0.009251]
[1721712029917,0.74801,66844.0,66843.0,0.009251]
[1721712030196,0.149602,66844.0,66843.0,0.009251]
[1721712030393,0.0880621,66855.0,66843.0,0.009251]
[1721712030394,0.04403105,66852.0,66843.0,0.009251]
[1721712030601,0.448806,66844.0,66843.0,0.009251]
[1721712030937,0.74801,66844.0,66843.0,0.009251]
[1721712031144,0.78730841,66844.0,66843.0,0.009251]
[1721712031391,0.78730841,66844.0,66843.0,0.021251]
[1721712031562,0.149602,66844.0,66843.0,0.021251]
[1721712032194,0.149598,66846.0,66843.0,0.021251]
[1721712032396,0.149598,66846.0,66844.0,0.023]
[1721712032569,0.48199392,66853.0,66844.0,0.023]
[1721712032778,0.149599,66845.0,66844.0,0.02272144]
[1721712033163,0.747997,66845.0,66844.0,0.02272144]
[1721712034188,0.748997,66845.0,66844.0,0.03172144]
[1721712035020,0.747997,66845.0,66844.0,0.02272144]
[1721712035623,0.04404835,66849.0,66844.0,0.02272144]
[1721712035863,0.14404835,66853.0,66846.0,0.05]
[1721712036021,0.06607253,66855.0,66847.0,0.172594]
[1721712036022,0.249585,66852.0,66847.0,0.172594]
[1721712036198,0.299165,66853.0,66847.0,0.023]
[1721712036455,0.1,66852.0,66848.0,0.0075867]
[1721712036622,0.149588,66850.0,66849.0,0.023]
[1721712036797,0.149588,66850.0,66849.0,0.03151527]
[1721712037177,0.78656904,66850.0,66849.0,0.03151527]
[1721712037389,1.56907372,66850.0,66849.0,2.7e-07]
[1721712037595,1.112214,66844.0,66843.0,0.009251]
[1721712037814,0.448819,66842.0,66841.0,0.0013156]
[1721712038035,1.18486386,66842.0,66841.0,0.0013156]
[1721712038241,1.92845551,66842.0,66841.0,0.0013156]
[1721712038449,2.06057309,66842.0,66841.0,0.0013156]
[1721712038657,1.92845225,66842.0,66841.0,0.0013156]
[1721712038861,2.0754149,66842.0,66841.0,0.0013156]
[1721712039285,2.0764149,66842.0,66841.0,0.0023156]
[1721712039700,2.0764149,66842.0,66841.0,0.0013156]
[1721712040116,2.0774149,66842.0,66841.0,0.0023156]
[1721712040330,1.73555225,66842.0,66841.0,0.0023156]
[1721712040537,1.74555225,66842.0,66841.0,0.0033156]
[1721712041382,1.74555225,66842.0,66841.0,0.0023156]
[1721712041383,1.74262453,66842.0,66841.0,0.0023156]
[1721712041801,1.74362453,66842.0,66841.0,0.0033156]
[1721712042013,1.51043211,66842.0,66841.0,0.0033156]
[1721712042225,1.36413211,66842.0,66841.0,0.0253156]
[1721712042451,1.36413211,66842.0,66841.0,0.0263156]
[1721712042696,1.29911153,66842.0,66841.0,0.0033156]
[1721712042913,1.51109476,66842.0,66841.0,0.0023156]
[1721712043126,1.81130776,66842.0,66841.0,0.0023156]
[1721712043344,1.36513211,66842.0,66841.0,0.0023156]
[1721712043551,1.36413211,66842.0,66841.0,0.0023156]
[1721712043757,1.29811153,66842.0,66841.0,0.0023156]
[1721712044007,1.18665532,66842.0,66841.0,0.0013156]
[1721712044234,0.252606,66842.0,66841.0,0.0253156]
[1721712044494,1.047291,66839.0,66831.0,0.002]
[1721712044722,1.59800614,66839.0,66831.0,0.002]
[1721712044959,1.58798867,66839.0,66831.0,0.002]
[1721712046010,1.59198867,66839.0,66831.0,0.002]
[1721712046389,1.54573282,66839.0,66831.0,0.002]
[1721712046611,1.39877017,66839.0,66831.0,0.002]
[1721712046811,1.75150914,66839.0,66831.0,0.002]
[1721712047017,1.40037231,66839.0,66831.0,0.002]
[1721712047220,1.29967951,66839.0,66838.0,0.101]
[1721712047830,1.29267951,66839.0,66838.0,0.1]
[1721712048012,1.29567951,66839.0,66838.0,0.101]
[1721712048234,1.44264216,66839.0,66838.0,0.101]
[1721712048537,1.54964966,66839.0,66838.0,0.1]
[1721712048720,1.43564216,66839.0,66838.0,0.1]
[1721712048869,1.55264966,66839.0,66838.0,0.101]
[1721712049075,1.55664966,66839.0,66838.0,0.096]
[1721712049465,1.44664216,66839.0,66838.0,0.096]
[1721712049663,1.34919248,66839.0,66838.0,0.096]
[1721712049886,1.1939811,66839.0,66838.0,0.096]
[1721712050089,1.360657,66839.0,66838.0,0.096]
[1721712050312,1.36065301,66839.0,66838.0,0.096]
[1721712050521,1.1939811,66839.0,66838.0,0.096]
[1721712050724,1.28880235,66839.0,66838.0,0.095]
[1721712051159,1.29680235,66839.0,66838.0,0.096]
[1721712051517,1.30080235,66839.0,66838.0,0.096]
[1721712051730,1.05555832,66839.0,66838.0,0.095]
[1721712052154,0.76833232,66839.0,66838.0,0.096]
[1721712052370,0.8997551,66839.0,66838.0,0.096]
[1721712052584,0.93974433,66839.0,66838.0,0.096]
[1721712052792,0.93574433,66839.0,66838.0,0.095]
[1721712053003,1.31480184,66839.0,66838.0,0.095]
[1721712053212,1.35479005,66839.0,66838.0,0.095]
[1721712053398,1.35679005,66839.0,66838.0,0.095]
[1721712054685,1.66699005,66839.0,66838.0,1e-06]
[1721712054903,0.149628,66832.0,66831.0,0.002]
[1721712055119,1.0824609,66832.0,66831.0,0.002]
[1721712055330,1.53823774,66832.0,66831.0,0.002]
[1721712055539,1.62621108,66832.0,66831.0,0.002]
[1721712055750,1.68520039,66832.0,66831.0,0.002]
[1721712056169,1.69941582,66832.0,66831.0,0.003]
[1721712056379,2.04818579,66832.0,66831.0,0.003]
[1721712056585,2.04818579,66832.0,66831.0,0.007]
[1721712056993,2.20478902,66832.0,66831.0,0.007]
[1721712057199,2.04818579,66832.0,66831.0,0.007]
[1721712057409,2.18868579,66832.0,66831.0,0.007]
[1721712057819,2.34526288,66832.0,66831.0,0.007]
[1721712058020,2.28458978,66832.0,66831.0,0.006]
[1721712058226,2.30658978,66832.0,66831.0,0.007]
[1721712058433,2.18668579,66832.0,66831.0,0.002]
[1721712058850,2.29556634,66832.0,66831.0,0.003]
[1721712059056,2.29556634,66832.0,66831.0,0.002]
[1721712059057,2.29880029,66832.0,66831.0,0.002]
[1721712059472,2.29580029,66832.0,66831.0,0.003]
[1721712059686,2.18591952,66832.0,66831.0,0.002]
[1721712059909,1.79663156,66832.0,66831.0,0.002]
[1721712060117,1.8268783,66832.0,66831.0,0.003]
[1721712060332,1.80490613,66832.0,66831.0,0.003]
[1721712060545,1.571654,66832.0,66831.0,0.003]
[1721712060962,1.7186185,66832.0,66831.0,0.003]
[1721712061182,2.0038755,66832.0,66831.0,0.003]
[1721712061383,2.03981167,66832.0,66831.0,0.002]
[1721712061590,2.00987277,66832.0,66831.0,0.003]
[1721712061803,2.05456017,66832.0,66831.0,0.003]
[1721712062013,2.17901538,66832.0,66831.0,0.002]
[1721712062227,2.08307314,66832.0,66831.0,0.002]
[1721712062435,2.2778779,66832.0,66831.0,0.002]
[1721712062641,2.25590425,66832.0,66831.0,0.002]
[1721712062848,2.25590425,66832.0,66831.0,0.003]
[1721712062849,2.23536493,66832.0,66831.0,0.003]
[1721712063056,2.46861304,66832.0,66831.0,0.003]
[1721712063260,2.45061304,66832.0,66831.0,0.002]
[1721712063466,2.88316522,66832.0,66831.0,0.002]
[1721712063677,2.93316522,66832.0,66831.0,1e-06]
[1721712064128,1.04749223,66815.0,66814.0,0.000276]
[1721712064344,1.87627031,66815.0,66814.0,0.000276]
[1721712064588,2.02688703,66815.0,66814.0,0.000276]
[1721712064818,2.32622003,66815.0,66814.0,0.000276]
[1721712065025,2.27670706,66815.0,66814.0,0.000276]
[1721712065262,2.47318268,66815.0,66814.0,0.000276]
[1721712065720,2.43266971,66815.0,66814.0,0.000276]
[1721712065952,2.43866971,66815.0,66814.0,0.000276]
[1721712066417,2.42966971,66815.0,66814.0,0.000276]
[1721712066868,2.42966971,66815.0,66800.0,0.00432629]
[1721712066869,1.646408,66812.0,66800.0,0.00432629]
[1721712067087,1.70706351,66812.0,66800.0,0.00432629]
[1721712067318,2.31517946,66812.0,66800.0,0.00432629]
[1721712067524,2.36517946,66812.0,66800.0,0.00432629]
[1721712067745,2.31517946,66812.0,66800.0,0.00432629]
[1721712068039,2.51214211,66812.0,66800.0,0.00432629]
[1721712068191,2.46214211,66812.0,66800.0,0.00432629]
[1721712068437,2.16279511,66812.0,66800.0,0.00432629]
[1721712068640,2.10634304,66812.0,66800.0,0.00432629]
[1721712068845,2.50569004,66812.0,66800.0,0.00432629]
[1721712069292,2.51969004,66812.0,66800.0,0.00432629]
[1721712069517,3.06903704,66812.0,66811.0,1e-06]
[1721712069725,1.88848,66809.0,66808.0,1e-06]
[1721712069952,2.20618749,66809.0,66808.0,1e-06]
[1721712070179,2.15618749,66809.0,66808.0,1e-06]
[1721712070401,2.34341166,66809.0,66808.0,1e-06]
[1721712070863,2.29341166,66809.0,66808.0,1e-06]
[1721712071462,2.34341166,66809.0,66808.0,0.000925]
[1721712071681,2.00805166,66809.0,66808.0,0.000925]
[1721712072314,2.01805166,66809.0,66808.0,0.000925]
[1721712072977,1.8921218,66809.0,66808.0,0.000925]
[1721712073189,1.9421218,66809.0,66808.0,0.000925]
[1721712073399,1.84339329,66809.0,66808.0,0.000925]
[1721712073605,1.94214464,66809.0,66808.0,0.000925]
[1721712074231,2.13804464,66809.0,66808.0,0.000925]
[1721712075259,2.08804464,66809.0,66808.0,0.000925]
[1721712075919,2.08804464,66809.0,66800.0,0.00432629]
[1721712075920,0.549392,66802.0,66800.0,0.00432629]
[1721712076158,1.45593,66802.0,66800.0,0.00432629]
[1721712076373,1.855322,66802.0,66800.0,0.00432629]
[1721712076576,2.154714,66802.0,66800.0,0.00432629]
[1721712076792,1.347282,66801.0,66800.0,0.00107389]
[1721712076997,1.59254283,66801.0,66800.0,0.00107389]
[1721712077228,1.58974883,66801.0,66800.0,0.00107389]
[1721712077845,1.19194342,66801.0,66800.0,0.00107389]
[1721712078048,1.42890335,66801.0,66800.0,0.00107389]
[1721712078176,1.29451901,66801.0,66800.0,0.00107389]
[1721712078592,1.19694342,66801.0,66800.0,0.00107389]
[1721712078795,1.74283049,66801.0,66800.0,0.00107389]
[1721712079019,2.04222649,66801.0,66800.0,0.00107389]
[1721712079223,2.04322649,66801.0,66800.0,0.00107389]
[1721712079400,2.19018914,66801.0,66800.0,0.00107389]
[1721712079801,1.89079314,66801.0,66800.0,0.00107389]
[1721712080200,2.34778914,66801.0,66800.0,0.00107389]
[1721712081094,1.74383049,66801.0,66800.0,0.00107389]
[1721712081667,1.74406865,66801.0,66800.0,0.00107389]
[1721712082330,1.74406865,66801.0,66796.0,0.0011]
[1721712082331,1.347363,66797.0,66796.0,0.0011]
[1721712082515,1.58982978,66797.0,66796.0,0.0011]
[1721712082937,1.73679243,66797.0,66796.0,0.0011]
[1721712083596,1.73679243,66797.0,66783.0,0.009262]
[1721712083597,1.543366,66792.0,66783.0,0.009262]
[1721712083797,1.92863707,66792.0,66783.0,0.009262]
[1721712084029,2.43567407,66792.0,66783.0,0.009262]
[1721712084238,2.52289824,66792.0,66783.0,0.009262]
[1721712084440,2.57289824,66792.0,66783.0,0.009262]
[1721712084656,2.47476901,66792.0,66783.0,0.009262]
[1721712084860,2.57246412,66792.0,66783.0,0.009262]
[1721712085290,0.25,66789.0,66783.0,0.009262]
[1721712085498,0.645108,66784.0,66783.0,0.009262]
[1721712085704,1.48776311,66784.0,66783.0,0.009262]
[1721712085936,1.78723511,66784.0,66783.0,0.009262]
[1721712086156,1.48776311,66784.0,66783.0,0.009262]
[1721712086363,1.62498728,66784.0,66783.0,0.009262]
[1721712086695,1.29186311,66784.0,66783.0,0.009262]
[1721712086901,1.48776311,66784.0,66783.0,0.009262]
[1721712087493,1.48523182,66784.0,66783.0,0.009262]
[1721712087692,1.49823182,66784.0,66783.0,0.009262]
[1721712087894,1.49923612,66784.0,66783.0,0.009262]
[1721712088149,1.65619877,66784.0,66783.0,0.009262]
[1721712088324,1.31333612,66784.0,66783.0,0.009262]
[1721712088733,1.61280812,66784.0,66783.0,0.009262]
[1721712088935,1.67520812,66784.0,66783.0,0.009262]
[1721712089336,1.66520812,66784.0,66783.0,0.009262]
[1721712089538,1.81217077,66784.0,66783.0,0.009262]
[1721712089746,1.44529877,66784.0,66783.0,0.009262]
[1721712090090,1.44929877,66784.0,66783.0,0.009262]
[1721712090293,1.65260542,66784.0,66783.0,0.009262]
[1721712090498,1.49898804,66784.0,66783.0,0.009262]
[1721712090699,1.43698804,66784.0,66783.0,0.009262]
[1721712090903,1.29002539,66784.0,66783.0,0.009262]
[1721712091125,1.29802539,66784.0,66783.0,0.009262]
[1721712091338,1.72809739,66784.0,66783.0,0.009262]
[1721712091540,1.72009739,66784.0,66783.0,0.009262]
[1721712091741,1.87606004,66784.0,66783.0,0.009262]
[1721712092095,1.99086004,66784.0,66783.0,0.009262]
[1721712092324,1.99086004,66784.0,66781.0,0.002]
[1721712092325,1.397664,66782.0,66781.0,0.002]
[1721712092523,1.76650153,66782.0,66781.0,0.002]
[1721712092725,1.9037257,66782.0,66781.0,0.002]
[1721712093155,2.32270005,66782.0,66781.0,0.002]
[1721712093307,2.54491856,66782.0,66781.0,0.002]
[1721712093541,2.59491856,66782.0,66781.0,0.002]
[1721712093741,2.59891856,66782.0,66781.0,0.002]
[1721712094198,2.65591856,66782.0,66781.0,0.002]
[1721712094399,2.55591856,66782.0,66781.0,0.002]
[1721712094599,2.05643756,66782.0,66781.0,0.002]
[1721712094831,1.91921339,66782.0,66781.0,0.002]
[1721712095392,1.91521339,66782.0,66781.0,0.002]
[1721712095615,1.86521339,66782.0,66781.0,0.002]
[1721712095815,1.87521339,66782.0,66781.0,0.002]
[1721712096005,1.55873239,66782.0,66781.0,0.002]
[1721712096197,1.34127653,66782.0,66781.0,0.002]
[1721712096394,1.4481348,66782.0,66781.0,0.002]
[1721712096592,1.30117215,66782.0,66781.0,0.002]
[1721712096831,1.00269498,66782.0,66781.0,0.002]
[1721712097088,0.14899298,66782.0,66781.0,0.1444]
[1721712097297,0.04613088,66782.0,66781.0,0.1444]
[1721712097504,0.20987088,66782.0,66781.0,0.1493518]
[1721712097678,0.06013088,66782.0,66781.0,0.1493518]
[1721712097885,0.04613088,66782.0,66781.0,0.1493518]
[1721712098254,0.49535188,66782.0,66781.0,0.1493518]
[1721712098461,0.9405941,66782.0,66781.0,0.0853518]
[1721712098701,1.2470751,66782.0,66781.0,0.002]
[1721712098851,1.2400751,66782.0,66781.0,0.002]
[1721712099054,1.43974907,66782.0,66781.0,0.002]
[1721712099257,1.5436184,66782.0,66781.0,0.002]
[1721712099661,1.5366184,66782.0,66781.0,0.002]
[1721712099883,1.5376184,66782.0,66781.0,0.002]
[1721712100103,1.29018321,66782.0,66781.0,0.002]
[1721712100302,0.99070221,66782.0,66781.0,0.002]
[1721712101974,0.9917385,66782.0,66781.0,0.002]
[1721712102329,0.3927765,66782.0,66781.0,0.002]
[1721712102516,0.3927765,66782.0,66781.0,0.1407]
[1721712102931,0.6922575,66782.0,66781.0,0.14560812]
[1721712103082,0.6922575,66782.0,66781.0,0.1407]
[1721712103284,0.2430365,66782.0,66781.0,0.1407]
[1721712103511,0.04613088,66782.0,66781.0,0.639929]
[1721712103710,0.04613088,66782.0,66781.0,0.29535112]
[1721712103909,0.04613088,66782.0,66781.0,0.29627512]
[1721712104114,0.19587088,66782.0,66781.0,0.14653212]
[1721712104812,0.19587088,66782.0,66781.0,0.00783212]
[1721712104813,1.3777915,66782.0,66781.0,0.00783212]
[1721712105030,1.37779141,66782.0,66781.0,0.00783212]
[1721712105227,1.83487241,66782.0,66781.0,0.002924]
[1721712105568,1.37879141,66782.0,66781.0,0.002924]
[1721712106222,1.37879141,66782.0,66781.0,0.006924]
[1721712106813,1.37879141,66782.0,66781.0,0.009924]
[1721712106814,2.595221,66782.0,66781.0,0.009924]
[1721712106987,2.29574,66782.0,66781.0,0.009924]
[1721712107387,2.595221,66782.0,66781.0,0.009924]
[1721712107591,2.29574,66782.0,66781.0,0.009924]